[Event "Late-Titled-Tuesday-Blitz-September-05-2023"]
[Site "Chess.com"]
[Date "2023.09.05"]
[Round "1"]
[White "Truequitos"]
[Black "Mikhail_Bryakin"]
[Result "1-0"]
[WhiteElo "2441"]
[BlackElo "2770"]
[TimeControl "180+1"]
[EndTime "14:08:56 PDT"]
[Termination "Truequitos won on time"]

1. e4 {[%clk 0:02:44.9]} 1... c5 {[%clk 0:02:59.3]} 2. Nc3 {[%clk 0:02:16.9]}
2... a6 {[%clk 0:02:44.8]} 3. g3 {[%clk 0:02:10.5]} 3... b5 {[%clk 0:02:38.5]}
4. Bg2 {[%clk 0:02:10.9]} 4... Bb7 {[%clk 0:02:30.5]} 5. d3 {[%clk 0:02:10.2]}
5... g6 {[%clk 0:02:24]} 6. f4 {[%clk 0:02:07.4]} 6... Bg7 {[%clk 0:02:23.9]} 7.
Nf3 {[%clk 0:02:08]} 7... d6 {[%clk 0:02:21.3]} 8. O-O {[%clk 0:02:08]} 8... Nc6
{[%clk 0:02:16.9]} 9. Be3 {[%clk 0:02:02.8]} 9... Nd4 {[%clk 0:02:09.7]} 10. Qd2
{[%clk 0:02:00.6]} 10... e6 {[%clk 0:02:08.7]} 11. Nd1 {[%clk 0:01:54.6]} 11...
Ne7 {[%clk 0:02:06.1]} 12. c3 {[%clk 0:01:54.7]} 12... Nxf3+ {[%clk 0:01:50.8]}
13. Bxf3 {[%clk 0:01:55.6]} 13... O-O {[%clk 0:01:50.7]} 14. Bg2 {[%clk
0:01:53.4]} 14... f5 {[%clk 0:01:49]} 15. Nf2 {[%clk 0:01:43.2]} 15... Rc8
{[%clk 0:01:47.1]} 16. d4 {[%clk 0:01:43.4]} 16... cxd4 {[%clk 0:01:39.2]} 17.
Bxd4 {[%clk 0:01:43.5]} 17... e5 {[%clk 0:01:37.1]} 18. Be3 {[%clk 0:01:39.6]}
18... Qc7 {[%clk 0:01:35.9]} 19. Rad1 {[%clk 0:01:28.2]} 19... d5 {[%clk
0:01:33.3]} 20. exd5 {[%clk 0:01:21.4]} 20... Qd6 {[%clk 0:01:30.1]} 21. fxe5
{[%clk 0:01:12.5]} 21... Bxe5 {[%clk 0:01:31]} 22. Nd3 {[%clk 0:01:06.9]} 22...
Bf6 {[%clk 0:01:29.6]} 23. Bf4 {[%clk 0:01:02.7]} 23... Qb6+ {[%clk 0:01:26.2]}
24. Be3 {[%clk 0:01:02.4]} 24... Qd6 {[%clk 0:01:25.4]} 25. Bf4 {[%clk
0:00:52.6]} 25... Qd7 {[%clk 0:01:23.2]} 26. d6 {[%clk 0:00:47.1]} 26... Bxg2
{[%clk 0:00:31.6]} 27. dxe7 {[%clk 0:00:45.1]} 27... Qxe7 {[%clk 0:00:23.8]} 28.
Qxg2 {[%clk 0:00:42.3]} 28... Rfd8 {[%clk 0:00:23.4]} 29. Rfe1 {[%clk
0:00:41.7]} 29... Qf7 {[%clk 0:00:19.6]} 30. a3 {[%clk 0:00:32.2]} 30... g5
{[%clk 0:00:14.7]} 31. Be5 {[%clk 0:00:29.1]} 31... Be7 {[%clk 0:00:14.9]} 32.
Bd4 {[%clk 0:00:27.8]} 32... Bf8 {[%clk 0:00:14.2]} 33. Ne5 {[%clk 0:00:27.1]}
33... Qc7 {[%clk 0:00:13.4]} 34. Qf3 {[%clk 0:00:24.1]} 34... f4 {[%clk
0:00:06.2]} 35. gxf4 {[%clk 0:00:22.3]} 35... Bg7 {[%clk 0:00:06.6]} 36. f5
{[%clk 0:00:14.6]} 36... Rf8 {[%clk 0:00:07.1]} 37. Ng4 {[%clk 0:00:12.7]} 37...
Bxd4+ {[%clk 0:00:05.8]} 38. Rxd4 {[%clk 0:00:11.7]} 38... Kh8 {[%clk
0:00:04.6]} 39. Rde4 {[%clk 0:00:07.3]} 39... Qf7 {[%clk 0:00:03.3]} 40. f6
{[%clk 0:00:06.6]} 40... h5 {[%clk 0:00:02.7]} 41. Re5 {[%clk 0:00:01.4]} 41...
Qh7 {[%clk 0:00:03.6]} 42. Qe4 {[%clk 0:00:01.6]} 42... Qxe4 {[%clk 0:00:03.4]}
43. R5xe4 {[%clk 0:00:02.2]} 43... hxg4 {[%clk 0:00:02.9]} 44. Re6 {[%clk
0:00:02.9]} 44... Rf7 {[%clk 0:00:03.1]} 45. R1e5 {[%clk 0:00:03.4]} 45... Rg8
{[%clk 0:00:02.8]} 46. Rxa6 {[%clk 0:00:02.8]} 46... Kh7 {[%clk 0:00:02.1]} 47.
Rae6 {[%clk 0:00:03.4]} 47... Kg6 {[%clk 0:00:02.4]} 48. Rxb5 {[%clk 0:00:03.9]}
48... Rd8 {[%clk 0:00:02]} 49. Re7 {[%clk 0:00:04]} 49... Rxf6 {[%clk
0:00:02.2]} 50. Ree5 {[%clk 0:00:04]} 50... Rd1+ {[%clk 0:00:01.8]} 51. Kg2
{[%clk 0:00:04.6]} 51... Rd2+ {[%clk 0:00:01.9]} 52. Kg1 {[%clk 0:00:04.2]}
52... Rd1+ {[%clk 0:00:02.3]} 53. Kg2 {[%clk 0:00:04.8]} 53... Rd2+ {[%clk
0:00:02.9]} 54. Kg1 {[%clk 0:00:05.4]} 54... Rf4 {[%clk 0:00:02.9]} 55. Rxg5+
{[%clk 0:00:04.7]} 55... Kf6 {[%clk 0:00:03.5]} 56. Rgd5 {[%clk 0:00:05.1]}
56... Rc2 {[%clk 0:00:03.2]} 57. Rd6+ {[%clk 0:00:04]} 57... Ke7 {[%clk
0:00:03.7]} 58. Ra6 {[%clk 0:00:04.2]} 58... Kd7 {[%clk 0:00:04]} 59. Rb7+
{[%clk 0:00:04]} 59... Kc8 {[%clk 0:00:04.6]} 60. Rh7 {[%clk 0:00:04.3]} 60...
Kb8 {[%clk 0:00:04.7]} 61. Rd6 {[%clk 0:00:03.7]} 61... Rf8 {[%clk 0:00:04.6]}
62. Rd4 {[%clk 0:00:04.1]} 62... Rc1+ {[%clk 0:00:04]} 63. Kg2 {[%clk
0:00:03.8]} 63... Rc2+ {[%clk 0:00:04.9]} 64. Kg3 {[%clk 0:00:04.4]} 64... Ka8
{[%clk 0:00:05.7]} 65. Ra4+ {[%clk 0:00:04.3]} 65... Kb8 {[%clk 0:00:05.8]} 66.
Rb4+ {[%clk 0:00:05]} 66... Ka8 {[%clk 0:00:06.3]} 67. Rh5 {[%clk 0:00:04.5]}
67... Rf3+ {[%clk 0:00:02.5]} 68. Kxg4 {[%clk 0:00:04.4]} 1-0

[Event "Late-Titled-Tuesday-Blitz-September-05-2023"]
[Site "Chess.com"]
[Date "2023.09.05"]
[Round "1"]
[White "fitod"]
[Black "Attacker_2006"]
[Result "0-1"]
[WhiteElo "2269"]
[BlackElo "2576"]
[TimeControl "180+1"]
[EndTime "14:08:56 PDT"]
[Termination "Attacker_2006 won by checkmate"]

1. e4 {[%clk 0:02:59.6]} 1... d6 {[%clk 0:02:56.2]} 2. d4 {[%clk 0:02:59.4]}
2... Nf6 {[%clk 0:02:56.5]} 3. Nc3 {[%clk 0:02:59.7]} 3... e5 {[%clk 0:02:57]}
4. dxe5 {[%clk 0:02:58.8]} 4... dxe5 {[%clk 0:02:57.9]} 5. Qxd8+ {[%clk
0:02:59]} 5... Kxd8 {[%clk 0:02:58.8]} 6. f4 {[%clk 0:02:59.7]} 6... Bb4 {[%clk
0:02:57.3]} 7. Bd3 {[%clk 0:02:57.6]} 7... Nbd7 {[%clk 0:02:52.2]} 8. Ne2 {[%clk
0:02:56.4]} 8... c6 {[%clk 0:02:48.8]} 9. a3 {[%clk 0:02:55.2]} 9... Bxc3+
{[%clk 0:02:44.6]} 10. Nxc3 {[%clk 0:02:55.2]} 10... Re8 {[%clk 0:02:44.1]} 11.
O-O {[%clk 0:02:54.3]} 11... a5 {[%clk 0:02:40]} 12. f5 {[%clk 0:02:52.6]} 12...
Kc7 {[%clk 0:02:39.4]} 13. Be3 {[%clk 0:02:52.3]} 13... b6 {[%clk 0:02:38.9]}
14. h3 {[%clk 0:02:52.4]} 14... Ba6 {[%clk 0:02:39.3]} 15. g4 {[%clk 0:02:51.7]}
15... Bxd3 {[%clk 0:02:39.1]} 16. cxd3 {[%clk 0:02:51.6]} 16... Ng8 {[%clk
0:02:36.6]} 17. Kf2 {[%clk 0:02:50.7]} 17... f6 {[%clk 0:02:36.7]} 18. Rac1
{[%clk 0:02:50.3]} 18... Kb7 {[%clk 0:02:36.7]} 19. Rc2 {[%clk 0:02:49.8]} 19...
Ne7 {[%clk 0:02:37.3]} 20. Rfc1 {[%clk 0:02:49.6]} 20... Rac8 {[%clk 0:02:33.4]}
21. Ne2 {[%clk 0:02:47.1]} 21... Rc7 {[%clk 0:02:32.8]} 22. b4 {[%clk
0:02:37.8]} 22... axb4 {[%clk 0:02:32.2]} 23. axb4 {[%clk 0:02:36.9]} 23... Ra8
{[%clk 0:02:33.1]} 24. Nc3 {[%clk 0:02:26.9]} 24... Ra3 {[%clk 0:02:10.4]} 25.
Ke2 {[%clk 0:02:26.4]} 25... Rc8 {[%clk 0:02:07.4]} 26. h4 {[%clk 0:02:25.4]}
26... h6 {[%clk 0:02:07]} 27. g5 {[%clk 0:02:16]} 27... hxg5 {[%clk 0:02:06]}
28. hxg5 {[%clk 0:02:16.2]} 28... Rb3 {[%clk 0:02:06.9]} 29. Rb1 {[%clk
0:01:56.8]} 29... Rxb1 {[%clk 0:02:04.6]} 30. Nxb1 {[%clk 0:01:57.7]} 30... Rh8
{[%clk 0:02:03.2]} 31. Nd2 {[%clk 0:01:37.1]} 31... Rh2+ {[%clk 0:01:50.6]} 32.
Kf3 {[%clk 0:01:36.5]} 32... Rh3+ {[%clk 0:01:50]} 33. Kf2 {[%clk 0:01:29.7]}
33... g6 {[%clk 0:01:20]} 34. fxg6 {[%clk 0:01:24.8]} 34... Nxg6 {[%clk
0:01:19.6]} 35. Nf3 {[%clk 0:01:25.1]} 35... fxg5 {[%clk 0:01:16.9]} 36. Bxg5
{[%clk 0:01:15.2]} 36... Ndf8 {[%clk 0:01:14.4]} 37. Kg2 {[%clk 0:01:14.4]}
37... Rh5 {[%clk 0:01:14.2]} 38. Be3 {[%clk 0:01:11.5]} 38... Ne6 {[%clk
0:01:14.3]} 39. Kg3 {[%clk 0:01:07.2]} 39... Ngf4 {[%clk 0:01:11.1]} 40. d4
{[%clk 0:01:06]} 40... Rh3+ {[%clk 0:01:05.4]} 41. Kg4 {[%clk 0:01:03.6]} 41...
Rh8 {[%clk 0:00:56.4]} 42. Nxe5 {[%clk 0:00:57.8]} 42... Rg8+ {[%clk 0:00:54.9]}
43. Kf3 {[%clk 0:00:58.2]} 43... Rf8 {[%clk 0:00:50.4]} 44. Bxf4 {[%clk
0:00:58]} 44... Nxd4+ {[%clk 0:00:49.5]} 45. Kg4 {[%clk 0:00:50]} 45... Nxc2
{[%clk 0:00:50.4]} 46. Nd3 {[%clk 0:00:49.7]} 46... Rd8 {[%clk 0:00:44.6]} 47.
Ne5 {[%clk 0:00:47.7]} 47... Nxb4 {[%clk 0:00:44.2]} 48. Nf7 {[%clk 0:00:46.4]}
48... Rg8+ {[%clk 0:00:41.4]} 49. Kf5 {[%clk 0:00:46.4]} 49... Nd3 {[%clk
0:00:39]} 50. Bd6 {[%clk 0:00:43.7]} 50... c5 {[%clk 0:00:36.5]} 51. e5 {[%clk
0:00:43.6]} 51... c4 {[%clk 0:00:37]} 52. Ke4 {[%clk 0:00:42.3]} 52... Rg4+
{[%clk 0:00:36.4]} 53. Ke3 {[%clk 0:00:41.3]} 53... Rg6 {[%clk 0:00:32.1]} 54.
Kd4 {[%clk 0:00:40.3]} 54... b5 {[%clk 0:00:31.2]} 55. Nd8+ {[%clk 0:00:26.4]}
55... Kc8 {[%clk 0:00:29.9]} 56. Nf7 {[%clk 0:00:21.5]} 56... Kd7 {[%clk
0:00:28.2]} 57. Ba3 {[%clk 0:00:19.5]} 57... Rg4+ {[%clk 0:00:25.4]} 58. Kc3
{[%clk 0:00:18.7]} 58... Ke6 {[%clk 0:00:26]} 59. Nd6 {[%clk 0:00:17.8]} 59...
Kxe5 {[%clk 0:00:17.5]} 60. Nxb5 {[%clk 0:00:16.8]} 60... Kd5 {[%clk 0:00:17.7]}
61. Nc7+ {[%clk 0:00:16.3]} 61... Kc6 {[%clk 0:00:18.4]} 62. Ne6 {[%clk
0:00:16.3]} 62... Ne5 {[%clk 0:00:18.3]} 63. Nd4+ {[%clk 0:00:15.6]} 63... Kd5
{[%clk 0:00:19]} 64. Ne2 {[%clk 0:00:15]} 64... Re4 {[%clk 0:00:19.1]} 65. Nc1
{[%clk 0:00:13.6]} 65... Re3+ {[%clk 0:00:19.3]} 66. Kb2 {[%clk 0:00:14.1]}
66... c3+ {[%clk 0:00:18.5]} 67. Kc2 {[%clk 0:00:13.2]} 67... Kc4 {[%clk
0:00:16.4]} 68. Bd6 {[%clk 0:00:13.2]} 68... Nc6 {[%clk 0:00:16.4]} 69. Bf4
{[%clk 0:00:12.1]} 69... Nd4+ {[%clk 0:00:16.1]} 70. Kd1 {[%clk 0:00:11.1]}
70... Rf3 {[%clk 0:00:11.4]} 71. Ne2 {[%clk 0:00:06.2]} 71... Rf1# {[%clk
0:00:09.8]} 0-1

[Event "Late-Titled-Tuesday-Blitz-September-05-2023"]
[Site "Chess.com"]
[Date "2023.09.05"]
[Round "1"]
[White "JiiHart"]
[Black "zajka-molotok"]
[Result "0-1"]
[WhiteElo "2114"]
[BlackElo "2526"]
[TimeControl "180+1"]
[EndTime "14:09:08 PDT"]
[Termination "zajka-molotok won by checkmate"]

1. e4 {[%clk 0:03:00.1]} 1... c5 {[%clk 0:00:49.2]} 2. c3 {[%clk 0:02:58.9]}
2... d5 {[%clk 0:00:49.1]} 3. exd5 {[%clk 0:02:58.7]} 3... Qxd5 {[%clk 0:00:50]}
4. d4 {[%clk 0:02:59]} 4... Nc6 {[%clk 0:00:50.1]} 5. Nf3 {[%clk 0:02:58.6]}
5... Bg4 {[%clk 0:00:50]} 6. Be2 {[%clk 0:02:58.3]} 6... e6 {[%clk 0:00:49.9]}
7. Na3 {[%clk 0:02:57.4]} 7... Nf6 {[%clk 0:00:49]} 8. O-O {[%clk 0:02:53.9]}
8... Be7 {[%clk 0:00:48.1]} 9. Be3 {[%clk 0:02:51.5]} 9... cxd4 {[%clk
0:00:48.1]} 10. Nb5 {[%clk 0:02:49.9]} 10... Qd7 {[%clk 0:00:44.4]} 11. Nbxd4
{[%clk 0:02:49.6]} 11... Nxd4 {[%clk 0:00:39]} 12. Nxd4 {[%clk 0:02:49.1]} 12...
Bxe2 {[%clk 0:00:39.9]} 13. Qxe2 {[%clk 0:02:49.2]} 13... O-O {[%clk 0:00:40]}
14. Rfd1 {[%clk 0:02:48.9]} 14... Qc7 {[%clk 0:00:38.4]} 15. a4 {[%clk
0:02:47.7]} 15... a6 {[%clk 0:00:37.8]} 16. h3 {[%clk 0:02:47.6]} 16... Nd5
{[%clk 0:00:37.8]} 17. a5 {[%clk 0:02:27.8]} 17... Bf6 {[%clk 0:00:36.3]} 18.
Nf3 {[%clk 0:02:21.5]} 18... Nxe3 {[%clk 0:00:31.6]} 19. Qxe3 {[%clk 0:02:22.4]}
19... Rfd8 {[%clk 0:00:30.9]} 20. Qb6 {[%clk 0:02:17.8]} 20... Qxb6 {[%clk
0:00:28]} 21. axb6 {[%clk 0:02:18.5]} 21... Kf8 {[%clk 0:00:27.4]} 22. Kf1
{[%clk 0:02:08.7]} 22... Ke8 {[%clk 0:00:27.3]} 23. Rd2 {[%clk 0:01:51.6]} 23...
Rxd2 {[%clk 0:00:23.1]} 24. Nxd2 {[%clk 0:01:52.5]} 24... Rc8 {[%clk 0:00:19.9]}
25. Ra4 {[%clk 0:01:38.8]} 25... Rc6 {[%clk 0:00:19.1]} 26. Nc4 {[%clk
0:01:19.5]} 26... Bd8 {[%clk 0:00:15.4]} 27. Rb4 {[%clk 0:01:18.8]} 27... Be7
{[%clk 0:00:15.6]} 28. Ra4 {[%clk 0:01:18]} 28... Bc5 {[%clk 0:00:15.8]} 29. Ke2
{[%clk 0:01:09.6]} 29... Bxb6 {[%clk 0:00:15.8]} 30. Rb4 {[%clk 0:01:08.1]}
30... Bd8 {[%clk 0:00:15.1]} 31. Ne5 {[%clk 0:01:06.4]} 31... Rc7 {[%clk
0:00:14.6]} 32. f4 {[%clk 0:01:05]} 32... f6 {[%clk 0:00:14.7]} 33. Nc4 {[%clk
0:01:00.1]} 33... b5 {[%clk 0:00:14.6]} 34. Nd6+ {[%clk 0:00:57]} 34... Kd7
{[%clk 0:00:14.3]} 35. Rd4 {[%clk 0:00:54.6]} 35... Kc6 {[%clk 0:00:11.3]} 36.
c4 {[%clk 0:00:46.8]} 36... Be7 {[%clk 0:00:09.3]} 37. cxb5+ {[%clk 0:00:45.6]}
37... axb5 {[%clk 0:00:10.2]} 38. Ne4 {[%clk 0:00:37]} 38... Rd7 {[%clk
0:00:10.5]} 39. Rxd7 {[%clk 0:00:35]} 39... Kxd7 {[%clk 0:00:11.4]} 40. Kd3
{[%clk 0:00:35.1]} 40... Kc6 {[%clk 0:00:11.7]} 41. g4 {[%clk 0:00:34.3]} 41...
Bd6 {[%clk 0:00:11.8]} 42. f5 {[%clk 0:00:29.7]} 42... exf5 {[%clk 0:00:11.3]}
43. gxf5 {[%clk 0:00:29.9]} 43... Be5 {[%clk 0:00:12.2]} 44. b3 {[%clk
0:00:28.4]} 44... Kd5 {[%clk 0:00:11.5]} 45. Nf2 {[%clk 0:00:27.7]} 45... Bd6
{[%clk 0:00:09.3]} 46. Ne4 {[%clk 0:00:26.4]} 46... Ke5 {[%clk 0:00:08.4]} 47.
Ke3 {[%clk 0:00:25.4]} 47... Bf8 {[%clk 0:00:07.3]} 48. Ng3 {[%clk 0:00:23.7]}
48... Kd5 {[%clk 0:00:06.7]} 49. Kd3 {[%clk 0:00:23.6]} 49... Kc5 {[%clk
0:00:06.7]} 50. Kc3 {[%clk 0:00:23.6]} 50... Kd5 {[%clk 0:00:07.1]} 51. Kd3
{[%clk 0:00:23.8]} 51... Bd6 {[%clk 0:00:07.8]} 52. Ne4 {[%clk 0:00:21.3]} 52...
Be5 {[%clk 0:00:07.9]} 53. Nf2 {[%clk 0:00:19.7]} 53... Kc5 {[%clk 0:00:08.4]}
54. Ng4 {[%clk 0:00:18.6]} 54... Kb4 {[%clk 0:00:08.5]} 55. Kc2 {[%clk 0:00:19]}
55... Ka3 {[%clk 0:00:08.2]} 56. Ne3 {[%clk 0:00:18.7]} 56... Kb4 {[%clk
0:00:06.6]} 57. Nd5+ {[%clk 0:00:18.6]} 57... Kc5 {[%clk 0:00:06.5]} 58. Ne3
{[%clk 0:00:12.2]} 58... Kd4 {[%clk 0:00:06.7]} 59. Kd2 {[%clk 0:00:10.3]} 59...
Bf4 {[%clk 0:00:06.7]} 60. Ke2 {[%clk 0:00:10.7]} 60... Bxe3 {[%clk 0:00:07.6]}
61. Kf3 {[%clk 0:00:11.2]} 61... Kd3 {[%clk 0:00:07.3]} 62. Kg4 {[%clk
0:00:10.2]} 62... b4 {[%clk 0:00:07]} 63. Kf3 {[%clk 0:00:11]} 63... Bd4 {[%clk
0:00:06.6]} 64. Kg4 {[%clk 0:00:11.9]} 64... Kc3 {[%clk 0:00:07]} 65. Kf3 {[%clk
0:00:12.8]} 65... Kxb3 {[%clk 0:00:07.7]} 66. Ke4 {[%clk 0:00:13.7]} 66... Kc4
{[%clk 0:00:08.5]} 67. Kf3 {[%clk 0:00:12.6]} 67... b3 {[%clk 0:00:09]} 68. Ke4
{[%clk 0:00:13]} 68... g6 {[%clk 0:00:09.1]} 69. fxg6 {[%clk 0:00:12.8]} 69...
hxg6 {[%clk 0:00:10]} 70. h4 {[%clk 0:00:13.7]} 70... b2 {[%clk 0:00:10]} 71. h5
{[%clk 0:00:13.8]} 71... gxh5 {[%clk 0:00:09.5]} 72. Kf3 {[%clk 0:00:12.9]}
72... b1=Q {[%clk 0:00:08.5]} 73. Ke2 {[%clk 0:00:13.8]} 73... Qe4+ {[%clk
0:00:07.7]} 74. Kd2 {[%clk 0:00:13]} 74... Qg2+ {[%clk 0:00:07.3]} 75. Ke1
{[%clk 0:00:11.5]} 75... Kd3 {[%clk 0:00:06.8]} 76. Kd1 {[%clk 0:00:11]} 76...
Qf1# {[%clk 0:00:07.7]} 0-1

[Event "Late-Titled-Tuesday-Blitz-September-05-2023"]
[Site "Chess.com"]
[Date "2023.09.05"]
[Round "1"]
[White "olakenn"]
[Black "HalfIsCrayfish"]
[Result "1/2-1/2"]
[WhiteElo "1847"]
[BlackElo "2501"]
[TimeControl "180+1"]
[EndTime "14:09:32 PDT"]
[Termination "Game drawn - insufficient material"]

1. e4 {[%clk 0:03:00.9]} 1... Nc6 {[%clk 0:02:51.6]} 2. d4 {[%clk 0:03:00.2]}
2... d5 {[%clk 0:02:50.1]} 3. exd5 {[%clk 0:02:58.7]} 3... Qxd5 {[%clk 0:02:48]}
4. Nf3 {[%clk 0:02:58.5]} 4... Bg4 {[%clk 0:02:46.7]} 5. Be2 {[%clk 0:02:58.1]}
5... e5 {[%clk 0:02:46.1]} 6. dxe5 {[%clk 0:02:56.6]} 6... Bxf3 {[%clk
0:02:41.3]} 7. Bxf3 {[%clk 0:02:54.1]} 7... Qxe5+ {[%clk 0:02:41.5]} 8. Qe2
{[%clk 0:02:53.9]} 8... Qxe2+ {[%clk 0:02:38.6]} 9. Bxe2 {[%clk 0:02:53.2]} 9...
Bd6 {[%clk 0:02:35.6]} 10. c3 {[%clk 0:02:50.1]} 10... Nge7 {[%clk 0:02:35.1]}
11. O-O {[%clk 0:02:49.8]} 11... O-O-O {[%clk 0:02:30.9]} 12. Nd2 {[%clk
0:02:48.6]} 12... Rhe8 {[%clk 0:02:29.3]} 13. Nc4 {[%clk 0:02:42.5]} 13... Bc5
{[%clk 0:02:28.8]} 14. Bf3 {[%clk 0:02:36]} 14... Kb8 {[%clk 0:02:27.6]} 15. Be3
{[%clk 0:02:30.2]} 15... Bxe3 {[%clk 0:02:23.6]} 16. Nxe3 {[%clk 0:02:29.5]}
16... Rd2 {[%clk 0:02:24]} 17. b4 {[%clk 0:02:17.5]} 17... Red8 {[%clk
0:02:12.2]} 18. Rfd1 {[%clk 0:02:15.8]} 18... Ne5 {[%clk 0:02:09.1]} 19. Be4
{[%clk 0:01:57.9]} 19... a6 {[%clk 0:02:06.2]} 20. a4 {[%clk 0:01:52.7]} 20...
g6 {[%clk 0:01:57.6]} 21. f4 {[%clk 0:01:44.7]} 21... N5c6 {[%clk 0:01:29.3]}
22. b5 {[%clk 0:01:35.6]} 22... axb5 {[%clk 0:01:26.4]} 23. axb5 {[%clk
0:01:35.4]} 23... Rxd1+ {[%clk 0:01:26.9]} 24. Rxd1 {[%clk 0:01:33.7]} 24...
Rxd1+ {[%clk 0:01:25.3]} 25. Nxd1 {[%clk 0:01:33.2]} 25... Na7 {[%clk
0:01:25.6]} 26. c4 {[%clk 0:01:29.6]} 26... b6 {[%clk 0:01:24.3]} 27. Ne3 {[%clk
0:01:24.6]} 27... Nac8 {[%clk 0:01:23.4]} 28. f5 {[%clk 0:01:17.6]} 28... Nd6
{[%clk 0:01:22.6]} 29. fxg6 {[%clk 0:01:05.3]} 29... Nxe4 {[%clk 0:01:00]} 30.
gxh7 {[%clk 0:00:59.7]} 30... Ng6 {[%clk 0:00:59]} 31. h4 {[%clk 0:00:51.8]}
31... Nf6 {[%clk 0:00:58.3]} 32. g3 {[%clk 0:00:42.2]} 32... Nxh7 {[%clk
0:00:57.6]} 33. Kf2 {[%clk 0:00:42]} 33... Ne5 {[%clk 0:00:56.3]} 34. g4 {[%clk
0:00:32.2]} 34... Kc8 {[%clk 0:00:54.9]} 35. Kg3 {[%clk 0:00:31.9]} 35... Kd7
{[%clk 0:00:51.9]} 36. Kf4 {[%clk 0:00:30.8]} 36... f6 {[%clk 0:00:41]} 37. g5
{[%clk 0:00:29.2]} 37... Nd3+ {[%clk 0:00:40.1]} 38. Kf5 {[%clk 0:00:27.4]}
38... fxg5 {[%clk 0:00:39.7]} 39. hxg5 {[%clk 0:00:26]} 39... Nf8 {[%clk
0:00:24.5]} 40. g6 {[%clk 0:00:24.7]} 40... Ne6 {[%clk 0:00:24.3]} 41. Kf6
{[%clk 0:00:23.5]} 41... Ndf4 {[%clk 0:00:24.5]} 42. Nf5 {[%clk 0:00:17.5]}
42... Nh5+ {[%clk 0:00:24.3]} 43. Kf7 {[%clk 0:00:15.5]} 43... Ng5+ {[%clk
0:00:11.5]} 44. Kf8 {[%clk 0:00:10.9]} 44... Ke6 {[%clk 0:00:08.5]} 45. g7
{[%clk 0:00:08.9]} 45... Nh7+ {[%clk 0:00:07.1]} 46. Ke8 {[%clk 0:00:08]} 46...
Kxf5 {[%clk 0:00:06.3]} 47. Kd8 {[%clk 0:00:08]} 47... Nxg7 {[%clk 0:00:04.6]}
48. Kxc7 {[%clk 0:00:08.3]} 48... Ke6 {[%clk 0:00:04]} 49. Kxb6 {[%clk
0:00:08.6]} 49... Kd7 {[%clk 0:00:04.8]} 50. c5 {[%clk 0:00:08.9]} 50... Kc8
{[%clk 0:00:05.6]} 51. c6 {[%clk 0:00:09.5]} 51... Ne6 {[%clk 0:00:06.2]} 52.
Ka5 {[%clk 0:00:08.8]} 52... Nd8 {[%clk 0:00:04.9]} 53. b6 {[%clk 0:00:09.2]}
53... Nxc6+ {[%clk 0:00:05.3]} 54. Kb5 {[%clk 0:00:09.7]} 54... Kb7 {[%clk
0:00:06]} 55. Kc5 {[%clk 0:00:09.8]} 55... Nf8 {[%clk 0:00:06.6]} 56. Kd6 {[%clk
0:00:10.3]} 56... Ng6 {[%clk 0:00:06.9]} 57. Ke6 {[%clk 0:00:09.9]} 57... Nf4+
{[%clk 0:00:07]} 58. Kf5 {[%clk 0:00:10.3]} 58... Nd3 {[%clk 0:00:07.6]} 59. Kg4
{[%clk 0:00:10.9]} 59... Nc5 {[%clk 0:00:08.3]} 60. Kh3 {[%clk 0:00:11.6]} 60...
Ka6 {[%clk 0:00:08.3]} 61. Kg2 {[%clk 0:00:12.2]} 61... Nb7 {[%clk 0:00:08.8]}
62. Kh1 {[%clk 0:00:12.9]} 62... Kb5 {[%clk 0:00:09.5]} 63. Kg1 {[%clk
0:00:13.6]} 63... Kc5 {[%clk 0:00:10.3]} 64. Kh1 {[%clk 0:00:14.4]} 64... Kd4
{[%clk 0:00:11]} 65. Kg1 {[%clk 0:00:15.3]} 65... Ke3 {[%clk 0:00:11.7]} 66. Kh1
{[%clk 0:00:15.7]} 66... Nd4 {[%clk 0:00:12.4]} 67. Kh2 {[%clk 0:00:16]} 67...
Kf3 {[%clk 0:00:12.5]} 68. Kh3 {[%clk 0:00:16.4]} 68... Nf5 {[%clk 0:00:13.2]}
69. Kh2 {[%clk 0:00:15.6]} 69... Kf2 {[%clk 0:00:09.4]} 70. Kh3 {[%clk 0:00:16]}
70... Kf3 {[%clk 0:00:09.1]} 71. Kh2 {[%clk 0:00:16.4]} 71... Kf4 {[%clk
0:00:03.8]} 72. Kg2 {[%clk 0:00:16.3]} 72... Ng3 {[%clk 0:00:03.2]} 73. Kf2
{[%clk 0:00:16.3]} 73... Nf5 {[%clk 0:00:02.9]} 74. Ke2 {[%clk 0:00:16.6]} 74...
Ke4 {[%clk 0:00:03.5]} 75. Kd2 {[%clk 0:00:16.9]} 75... Kd4 {[%clk 0:00:03.6]}
76. Ke2 {[%clk 0:00:17.2]} 76... Ne3 {[%clk 0:00:03.2]} 77. Kf3 {[%clk
0:00:17.4]} 77... Kd3 {[%clk 0:00:03.8]} 78. Kf4 {[%clk 0:00:16.1]} 78... Kd4
{[%clk 0:00:04.1]} 79. Kg5 {[%clk 0:00:15.9]} 79... Nd5 {[%clk 0:00:04.7]} 80.
Kf5 {[%clk 0:00:15.7]} 80... Kc5 {[%clk 0:00:04.9]} 81. Ke4 {[%clk 0:00:16]}
81... Kd6 {[%clk 0:00:04.6]} 82. Kf5 {[%clk 0:00:16.2]} 82... Kc5 {[%clk
0:00:03.5]} 83. Ke4 {[%clk 0:00:16.7]} 83... Kc4 {[%clk 0:00:03.7]} 84. Kf5
{[%clk 0:00:17.2]} 84... Nb4 {[%clk 0:00:04.3]} 85. Ke4 {[%clk 0:00:17.7]} 85...
Kc5 {[%clk 0:00:04.4]} 86. Ke3 {[%clk 0:00:17.5]} 86... Nd5+ {[%clk 0:00:04.6]}
87. Kd3 {[%clk 0:00:17.8]} 87... Kd6 {[%clk 0:00:05.2]} 88. Kd4 {[%clk 0:00:18]}
88... Ke6 {[%clk 0:00:05.7]} 89. Kc4 {[%clk 0:00:18.3]} 89... Ke5 {[%clk
0:00:06.2]} 90. Kb5 {[%clk 0:00:18.6]} 90... Kd4 {[%clk 0:00:06.5]} 91. Kc6
{[%clk 0:00:18.8]} 91... Na5+ {[%clk 0:00:06.2]} 92. Kd7 {[%clk 0:00:17.8]}
92... Nb7 {[%clk 0:00:04]} 93. Kc6 {[%clk 0:00:18]} 93... Na5+ {[%clk
0:00:03.7]} 94. Kd7 {[%clk 0:00:18.3]} 94... Nf6+ {[%clk 0:00:04.2]} 95. Kc7
{[%clk 0:00:17.6]} 95... Kc5 {[%clk 0:00:03.4]} 96. b7 {[%clk 0:00:17.6]} 96...
Nd5+ {[%clk 0:00:04.1]} 97. Kc8 {[%clk 0:00:17.6]} 97... Ne7+ {[%clk 0:00:03.8]}
98. Kd7 {[%clk 0:00:18]} 98... Nec6 {[%clk 0:00:04]} 99. b8=Q {[%clk 0:00:17.2]}
99... Nxb8+ {[%clk 0:00:04]} 1/2-1/2